bitfinex/quotes_SOLUSD_20250417
["timestamp","ask_amount","ask_price","bid_price","bid_amount"]
[1744921201414,7.53125989,133.9,133.89,19.07849174]
[1744921201889,0.063,133.9,133.89,19.07849174]
[1744921205611,0.063,133.92,133.9,19.07613357]
[1744921205771,7.46602956,133.94,133.92,0.14216157]
[1744921205977,7.46602956,133.94,133.93,19.07849174]
[1744921206488,6.1273,133.98,133.94,0.42648471]
[1744921206489,0.063,133.98,133.94,0.42648471]
[1744921206674,0.063,133.98,133.97,18.7941686]
[1744921208372,0.063,133.98,133.97,19.07849174]
[1744921208587,0.063,133.98,133.97,19.22065331]
[1744921209196,0.063,133.98,133.97,38.01482191]
[1744921209375,0.063,134.0,133.98,0.28432314]
[1744921209692,0.063,134.0,133.99,18.93633017]
[1744921209895,7.52425981,134.03,134.0,0.28432314]
[1744921210093,7.52425981,134.03,134.02,19.07849174]
[1744921210397,0.063,134.03,134.02,19.22065331]
[1744921212976,0.063,134.03,134.02,37.87030217]
[1744921213295,0.063,134.06,134.03,19.07613357]
[1744921213485,0.063,134.06,134.05,37.87266034]
[1744921213683,0.063,134.06,134.05,56.66447077]
[1744921215394,0.063,134.06,134.05,19.22065331]
[1744921215594,0.063,134.06,134.05,18.7941686]
[1744921215894,0.063,134.06,134.05,19.07849174]
[1744921216198,0.063,134.06,134.05,38.01482191]
[1744921216398,0.063,134.06,134.05,56.66447077]
[1744921217305,0.063,134.06,134.05,19.22065331]
[1744921218907,0.063,134.06,134.03,18.7941686]
[1744921219706,0.063,134.06,134.04,18.7941686]
[1744921222103,0.063,134.06,134.03,18.7941686]
[1744921227222,18.71264886,134.06,134.01,16.1]
[1744921227397,18.7941686,134.04,134.0,18.7941686]
[1744921227599,18.7941686,134.03,133.99,18.7941686]
[1744921227905,18.7941686,134.0,133.95,18.7941686]
[1744921228093,18.7941686,134.0,133.92,0.42648471]
[1744921228294,18.7941686,133.99,133.94,18.7941686]
[1744921228616,7.7569,134.02,133.98,18.7941686]
[1744921229316,26.11745391,134.01,133.98,18.7941686]
[1744921230601,26.11745391,134.01,133.99,18.7941686]
[1744921230806,26.11745391,134.01,134.0,18.7941686]
[1744921231007,26.11745391,134.01,133.98,18.7941686]
[1744921232600,26.11745391,134.01,133.97,18.7941686]
[1744921233008,26.11745391,134.01,133.98,18.7941686]
[1744921233402,82.22227096,134.01,133.96,18.7941686]
[1744921233602,18.7941686,133.99,133.94,18.7941686]
[1744921234401,18.7941686,133.98,133.93,18.7941686]
[1744921234799,20.3013686,133.99,133.94,18.7941686]
[1744921235417,26.12330197,133.98,133.94,18.7941686]
[1744921235616,26.12330197,133.98,133.95,18.7941686]
[1744921236010,26.12330197,133.98,133.94,18.7941686]
[1744921237020,18.7941686,133.97,133.93,18.7941686]
[1744921237218,82.2364734,133.98,133.93,18.7941686]
[1744921238420,82.2364734,133.98,133.94,18.7941686]
[1744921238628,82.2364734,133.98,133.92,0.063]
[1744921238629,24.8232686,133.96,133.92,0.063]
[1744921238926,6.0291,133.96,133.93,18.7941686]
[1744921239105,6.0291,133.96,133.94,18.7941686]
[1744921239301,24.8232686,133.96,133.92,0.063]
[1744921240022,44.92332126,133.95,133.92,0.063]
[1744921240197,18.7941686,133.94,133.92,0.063]
[1744921240402,44.92332126,133.95,133.92,0.063]
[1744921242301,26.12915266,133.95,133.92,0.063]
[1744921242528,26.12915266,133.95,133.92,18.8571686]
[1744921243828,26.12915266,133.95,133.93,18.7941686]
[1744921244131,26.12915266,133.95,133.92,18.8571686]
[1744921245200,26.12915266,133.95,133.93,18.7941686]
[1744921245404,7.46547219,133.95,133.94,18.7941686]
[1744921247628,26.12439293,133.98,133.94,18.7941686]
[1744921249127,37.44381746,133.97,133.92,0.063]
[1744921249313,18.7941686,133.96,133.92,0.063]
[1744921249517,18.7941686,133.96,133.92,18.8571686]
[1744921250627,18.66368047,133.95,133.92,18.8571686]
[1744921250940,18.66368047,133.95,133.93,18.7941686]
[1744921251112,18.66368047,133.95,133.94,18.7941686]
[1744921252931,63.4423048,133.98,133.94,18.7941686]
[1744921253935,26.12330197,133.98,133.95,18.7941686]
[1744921254134,26.12330197,133.98,133.96,18.7941686]
[1744921255240,26.12330197,133.98,133.95,18.7941686]
[1744921256843,26.12330197,133.98,133.96,18.7941686]
[1744921257046,26.12330197,133.98,133.97,18.7941686]
[1744921257210,64.28676463,134.05,133.97,18.7941686]
[1744921257411,26.11160847,134.04,134.02,18.7941686]
[1744921257639,26.11160847,134.04,134.03,18.7941686]
[1744921258011,26.11160847,134.04,134.01,18.7941686]
[1744921258217,26.11160847,134.04,134.03,18.7941686]
[1744921258445,26.11160847,134.04,134.02,18.7941686]
[1744921258650,18.65114891,134.04,134.0,18.7941686]
[1744921258820,18.65114891,134.04,134.01,18.7941686]
[1744921259743,7.48990302,134.05,134.03,18.7941686]
[1744921259916,7.48990302,134.05,134.04,18.7941686]
[1744921260332,26.13966057,134.05,134.03,18.7941686]
[1744921260536,18.67975755,134.05,134.03,18.7941686]
[1744921262047,18.67975755,134.05,134.02,18.7941686]
[1744921262256,18.67975755,134.05,134.03,18.7941686]
[1744921263522,18.67975755,134.05,134.01,18.7941686]
[1744921263936,18.67975755,134.05,134.03,18.7941686]
[1744921266427,18.67975755,134.05,134.04,18.7941686]
[1744921266841,18.67975755,134.05,134.0,0.14216157]
[1744921266842,18.67975755,134.05,134.03,18.7941686]
[1744921269229,18.67975755,134.05,134.04,18.7941686]
[1744921269657,0.03,134.05,134.04,18.7941686]
[1744921272738,0.03,134.05,134.04,19.07849174]
[1744921280968,0.03,134.05,134.04,39.60572191]
[1744921281170,0.03,134.05,134.04,66.9681984]
[1744921281498,0.063,134.06,134.05,0.14216157]
[1744921281765,0.063,134.06,134.05,59.87065357]
[1744921281970,0.063,134.1,134.06,26.14216157]
[1744921282265,0.063,134.1,134.08,11.9456984]
[1744921282844,12.0086984,134.1,134.06,11.9456984]
[1744921283049,12.0086984,134.1,134.05,37.9456984]
[1744921283248,18.73755602,134.1,134.05,44.67455602]
[1744921284673,18.73755602,134.1,134.06,18.67455602]
[1744921285170,0.063,134.1,134.08,18.67455602]
[1744921285878,0.063,134.1,134.07,18.67455602]
[1744921286375,0.063,134.1,134.08,18.67455602]
[1744921287480,0.063,134.1,134.09,18.67455602]
[1744921287773,0.063,134.1,134.09,18.95887916]
[1744921289461,0.063,134.1,134.08,26.0]
[1744921289665,0.063,134.1,134.09,18.67455602]
[1744921292074,0.063,134.1,134.08,18.67455602]
[1744921293376,0.063,134.1,134.07,18.67455602]
[1744921294483,0.063,134.1,134.08,18.67455602]
[1744921296357,0.063,134.1,134.07,18.67455602]
[1744921296757,0.063,134.1,134.08,18.67455602]
[1744921299356,0.063,134.1,134.09,18.67455602]
[1744921300902,0.063,134.1,134.04,16.06]
[1744921301187,44.78421659,134.05,133.98,17.6776]
[1744921301480,50.95041659,134.05,134.0,18.67455602]
[1744921301677,18.67455602,134.04,133.99,18.67455602]
[1744921302469,26.11355666,134.03,133.99,18.67455602]
[1744921302668,26.11355666,134.03,134.0,18.67455602]
[1744921302978,26.11355666,134.03,134.01,18.67455602]
[1744921303174,26.11355666,134.03,134.02,18.67455602]
[1744921303362,26.11355666,134.03,134.01,18.67455602]
[1744921303571,26.11355666,134.03,134.0,18.67455602]
[1744921304581,18.65254047,134.03,134.0,18.67455602]
[1744921305179,7.45767767,134.09,134.02,18.67455602]
[1744921305387,7.52039383,134.1,134.08,18.67455602]
[1744921305563,0.063,134.1,134.09,18.67455602]
[1744921309383,0.063,134.1,134.08,18.67455602]
[1744921312485,0.063,134.1,134.09,18.67455602]
[1744921313871,0.063,134.1,134.06,16.32432314]
[1744921314164,0.063,134.1,134.09,18.67455602]
[1744921315173,0.063,134.1,134.09,18.95887916]
[1744921316693,0.063,134.1,134.09,18.67455602]
[1744921316895,0.063,134.1,134.09,18.95887916]
[1744921323395,0.063,134.1,134.09,19.10104073]
[1744921323596,0.03,134.12,134.11,26.0]
[1744921323807,0.03,134.13,134.12,0.14216157]
[1744921324101,0.03,134.13,134.12,18.95887916]
[1744921326879,0.03,134.13,134.12,19.10104073]
[1744921327591,0.03,134.13,134.12,43.74040438]
[1744921328801,0.063,134.15,134.14,0.28432314]
[1744921328999,0.063,134.15,134.14,18.95887916]
[1744921330103,0.063,134.15,134.14,25.06495902]
[1744921331887,0.063,134.15,134.14,45.10104073]
[1744921333795,0.063,134.15,134.14,51.06495902]
[1744921334525,0.03,134.16,134.15,26.28432314]
[1744921334711,0.03,134.16,134.15,44.95887916]
[1744921336320,0.03,134.17,134.16,0.14216157]
[1744921336498,0.03,134.17,134.16,34.83671759]
[1744921339424,0.03,134.17,134.16,35.12104073]
[1744921348118,0.03,134.17,134.16,41.08406994]
[1744921349306,0.03,134.17,134.16,35.12104073]
[1744921351328,0.03,134.17,134.16,28.37288317]
[1744921354130,0.03,134.21,134.19,26.0]
[1744921354302,0.03,134.21,134.2,11.92639846]
[1744921356547,0.03,134.21,134.19,37.92639846]
[1744921358329,7.48100961,134.21,134.19,37.92639846]
[1744921359725,18.64964886,134.19,134.13,11.92639846]
[1744921359928,11.92639846,134.18,134.13,11.92639846]
[1744921360412,26.0863084,134.17,134.13,11.92639846]
[1744921360616,26.0863084,134.17,134.14,11.92639846]
[1744921362427,17.95569846,134.15,134.1,0.063]
[1744921362723,11.92639846,134.12,134.1,0.063]
[1744921363025,30.57604732,134.14,134.1,0.063]
[1744921363216,37.3119758,134.14,134.1,0.063]
[1744921363611,6.0293,134.15,134.11,18.66232694]
[1744921363808,6.0293,134.15,134.13,18.66232694]
[1744921364208,7.45489786,134.14,134.12,18.66232694]
[1744921364408,26.1172248,134.14,134.1,18.72532694]
[1744921364610,44.75446946,134.14,134.1,0.063]
[1744921367636,44.75446946,134.14,134.1,18.72532694]
[1744921369434,70.75446946,134.14,134.1,18.72532694]
[1744921370028,52.09214252,134.14,134.1,18.72532694]
[1744921370946,26.0,134.11,134.1,0.063]
[1744921371615,33.4565655,134.11,134.1,0.063]
[1744921373132,7.45600954,134.12,134.1,18.72532694]
[1744921373338,7.45600954,134.12,134.11,18.66232694]
[1744921373831,7.45489786,134.14,134.11,18.94665008]
[1744921374043,7.45489786,134.14,134.13,18.66232694]
[1744921375443,44.73401314,134.18,134.13,18.66232694]
[1744921375641,44.73401314,134.18,134.15,18.66232694]
[1744921376017,44.73401314,134.18,134.11,0.28432314]
[1744921376219,44.73401314,134.18,134.14,18.66232694]
[1744921376827,44.73401314,134.18,134.15,18.66232694]
[1744921378138,44.73401314,134.18,134.14,18.66232694]
[1744921378344,63.39634008,134.18,134.11,0.28432314]
[1744921378545,100.65971763,134.18,134.14,18.66232694]
[1744921379444,100.65971763,134.18,134.11,0.28432314]
[1744921379643,18.66232694,134.16,134.1,26.063]
[1744921379846,18.66232694,134.16,134.12,18.66232694]
[1744921380051,18.66232694,134.17,134.13,18.66232694]
[1744921381150,26.08825282,134.16,134.13,18.66232694]
[1744921381354,82.01951237,134.16,134.1,0.063]
[1744921381654,82.01951237,134.16,134.12,18.66232694]
[1744921381956,63.35718543,134.16,134.12,18.66232694]
[1744921382759,26.08825282,134.16,134.14,18.66232694]
[1744921382945,26.08825282,134.16,134.15,18.66232694]
[1744921383135,26.08436428,134.18,134.15,18.66232694]
[1744921383457,26.08436428,134.18,134.17,18.66232694]
[1744921383633,7.45267551,134.18,134.17,18.66232694]
[1744921385251,26.10969691,134.21,134.17,18.66232694]
[1744921386456,37.3119758,134.2,134.16,18.66232694]
[1744921387864,26.08242044,134.19,134.16,18.66232694]
[1744921391455,26.08242044,134.19,134.18,18.66232694]
[1744921392337,0.050531,134.2,134.18,18.66232694]
[1744921392538,0.050531,134.2,134.17,18.66232694]
[1744921393156,0.050531,134.2,134.18,18.66232694]
[1744921393363,0.050531,134.2,134.19,18.66232694]
[1744921393665,0.050531,134.2,134.18,18.66232694]
[1744921394535,0.050531,134.2,134.17,18.66232694]
[1744921394954,0.050531,134.2,134.16,18.66232694]
[1744921395564,0.050531,134.2,134.17,18.66232694]
[1744921395948,0.050531,134.2,134.13,26.28432314]
[1744921396142,0.050531,134.2,134.17,18.66232694]
[1744921403254,0.050531,134.2,134.17,11.93038746]
[1744921403449,30.63056732,134.2,134.16,11.93038746]
[1744921403856,18.70017986,134.2,134.16,11.93038746]
[1744921404055,0.050531,134.2,134.17,11.93038746]
[1744921404258,0.050531,134.2,134.18,11.93038746]
[1744921404769,0.050531,134.2,134.19,11.93038746]
[1744921407177,0.050531,134.2,134.19,18.63287611]
[1744921412074,0.050531,134.2,134.19,37.26575222]
[1744921412377,0.050531,134.2,134.19,18.63287611]
[1744921416379,0.03,134.21,134.19,18.63287611]
[1744921416380,0.03,134.21,134.2,0.14216157]
[1744921416759,0.03,134.21,134.2,19.05936082]
[1744921418178,0.03,134.21,134.2,18.91719925]
[1744921418374,0.03,134.21,134.2,25.16612782]
[1744921418883,0.03,134.21,134.2,19.05936082]
[1744921419070,0.03,134.21,134.2,22.69569903]
[1744921419770,0.03,134.23,134.22,26.28432314]
[1744921419972,0.03,134.23,134.22,61.01936082]
[1744921421172,0.03,134.23,134.22,60.87719925]
[1744921421487,0.03,134.23,134.22,61.01936082]
[1744921421682,0.03,134.23,134.22,60.59287611]
[1744921427190,0.03,134.23,134.22,53.87644086]
[1744921443599,0.03,134.23,134.22,37.91644086]
[1744921447483,0.03,134.23,134.22,38.05860243]
[1744921447684,0.03,134.24,134.22,43.5582437]
[1744921447886,0.03,134.26,134.25,26.14216157]
[1744921448086,0.03,134.26,134.25,101.66436587]
[1744921448390,0.03,134.26,134.25,101.94868901]
[1744921448698,0.03,134.29,134.26,0.42648471]
[1744921448900,0.03,134.29,134.28,38.34292557]
[1744921449405,7.47554783,134.31,134.3,0.28432314]
[1744921449406,0.03,134.31,134.3,0.28432314]
[1744921449578,0.03,134.31,134.3,28.140764]
[1744921450000,26.04748083,134.37,134.33,26.0]
[1744921450303,7.44213738,134.37,134.36,11.91644086]
[1744921451093,7.44158356,134.38,134.36,11.91644086]
[1744921451302,2.0421956,134.39,134.37,11.91644086]
[1744921451481,2.0421956,134.39,134.38,11.91644086]
[1744921451482,9.48327791,134.39,134.38,11.91644086]
[1744921452094,9.48327791,134.39,134.36,53.83644086]
[1744921452298,28.0858525,134.39,134.36,37.91644086]
[1744921452606,40.00229336,134.39,134.35,11.91644086]
[1744921452779,40.00229336,134.39,134.34,53.83644086]
[1744921452976,46.30129336,134.39,134.34,53.83644086]
[1744921453498,46.30129336,134.39,134.34,27.83644086]
[1744921453720,83.50644255,134.39,134.34,27.83644086]
[1744921454010,11.91644086,134.37,134.32,11.91644086]
[1744921454605,30.56608972,134.38,134.33,11.91644086]
[1744921455101,83.50644255,134.39,134.35,11.91644086]
[1744921455286,90.18151136,134.39,134.35,18.59150967]
[1744921456817,90.18151136,134.39,134.34,18.59150967]
[1744921457193,18.59150967,134.38,134.33,18.59150967]
[1744921458086,26.04748083,134.37,134.33,18.59150967]
[1744921458913,63.25816773,134.37,134.34,18.59150967]
[1744921459995,55.81603035,134.37,134.34,18.59150967]
[1744921460816,74.40754002,134.37,134.33,18.59150967]
[1744921461526,18.59150967,134.35,134.3,34.51150967]
[1744921461706,18.59150967,134.35,134.26,20.24750967]
[1744921461707,18.59150967,134.34,134.29,18.59150967]
[1744921462028,26.05523709,134.33,134.29,18.59150967]
[1744921462530,50.96924676,134.33,134.28,18.59150967]
[1744921463232,69.59950437,134.33,134.29,18.59150967]
[1744921463528,88.19101404,134.33,134.29,18.59150967]
[1744921463726,88.19101404,134.33,134.27,15.92]
[1744921464023,88.19101404,134.33,134.28,18.59150967]
[1744921464024,26.05911696,134.31,134.28,18.59150967]
[1744921464220,81.87793658,134.31,134.27,18.59150967]
[1744921464595,18.59150967,134.28,134.2,3.69857918]
[1744921464824,18.64964886,134.3,134.2,3.69857918]
[1744921464825,18.59150967,134.26,134.2,15.92]
[1744921465010,18.59150967,134.25,134.21,18.59150967]
[1744921465212,18.59150967,134.25,134.2,15.92]
[1744921465524,24.83384886,134.27,134.21,18.59150967]
[1744921465525,18.59150967,134.26,134.21,18.59150967]
[1744921465822,18.64964886,134.26,134.22,18.59150967]
[1744921466124,37.24115853,134.26,134.21,18.59150967]
[1744921466328,26.07076349,134.25,134.21,18.59150967]
[1744921468220,26.07076349,134.25,134.19,0.063]
[1744921468399,26.07076349,134.25,134.21,18.59150967]
[1744921470730,26.07076349,134.25,134.23,18.59150967]
[1744921470909,7.44878957,134.25,134.24,18.59150967]
[1744921471504,26.06316936,134.29,134.24,18.59150967]
[1744921471716,26.06316936,134.29,134.27,18.59150967]
[1744921472532,18.61659851,134.29,134.27,18.59150967]
[1744921473109,18.61659851,134.29,134.25,18.59150967]
[1744921473928,18.61659851,134.29,134.26,18.59150967]
[1744921477731,18.61659851,134.29,134.23,26.0]
[1744921477732,44.65467903,134.29,134.24,18.59150967]
[1744921478131,44.65467903,134.29,134.25,18.59150967]
[1744921479214,44.65467903,134.29,134.24,18.59150967]
[1744921479723,18.59150967,134.26,134.21,44.59150967]
[1744921480319,18.59150967,134.26,134.22,18.59150967]
[1744921480747,18.59150967,134.26,134.21,18.59150967]
[1744921481546,26.07076349,134.25,134.21,18.59150967]
[1744921484158,26.07076349,134.25,134.22,18.59150967]
[1744921484336,26.07076349,134.25,134.21,18.59150967]
[1744921486042,26.07076349,134.25,134.22,18.59150967]
[1744921486819,7.44878957,134.25,134.24,18.59150967]
[1744921487419,7.44878957,134.25,134.22,26.0]
[1744921487629,7.44878957,134.25,134.23,18.59150967]
[1744921487927,7.44878957,134.25,134.22,26.0]
[1744921487928,7.44878957,134.25,134.24,18.59150967]
[1744921488845,44.65843757,134.27,134.22,44.59150967]
[1744921489031,18.59150967,134.26,134.22,26.0]
[1744921489642,81.8968378,134.27,134.22,44.59150967]
[1744921491530,63.30532813,134.27,134.23,18.59150967]
[1744921491848,26.0669279,134.27,134.24,18.59150967]
[1744921492749,18.61924786,134.27,134.25,18.59150967]
[1744921493052,18.61924786,134.27,134.24,18.59150967]
[1744921493950,63.29585225,134.29,134.24,18.59150967]
[1744921494152,63.29585225,134.29,134.25,18.59150967]
[1744921494342,81.88736192,134.29,134.24,18.59150967]
[1744921495642,63.29585225,134.29,134.26,18.59150967]
[1744921498054,26.06299798,134.29,134.27,18.59150967]
[1744921498653,26.06299798,134.29,134.26,18.59150967]
[1744921498844,26.06299798,134.29,134.25,18.59150967]
[1744921501354,44.65450765,134.29,134.24,18.59150967]
[1744921501554,18.59150967,134.28,134.23,18.59150967]
[1744921501959,26.06688015,134.27,134.23,18.59150967]
[1744921502931,26.06688015,134.27,134.24,18.59150967]
[1744921503131,26.06688015,134.27,134.24,11.91758387]
[1744921503430,18.61920011,134.27,134.24,11.91758387]
[1744921507461,18.61920011,134.27,134.26,11.91758387]
[1744921508866,7.4471254,134.28,134.26,11.91758387]
[1744921509064,7.4471254,134.28,134.27,11.91758387]
[1744921509246,18.61389468,134.31,134.27,11.91758387]
[1744921510242,30.53147855,134.31,134.27,11.91758387]
[1744921510445,30.53147855,134.31,134.25,26.0]
[1744921510644,30.53147855,134.31,134.25,37.91758387]
[1744921510645,11.91758387,134.3,134.25,37.91758387]
[1744921511663,26.06299798,134.29,134.26,11.91758387]
[1744921513167,18.61642713,134.29,134.26,18.61463112]
[1744921517844,26.05911696,134.31,134.26,18.61463112]
[1744921518044,44.67374808,134.31,134.26,18.61463112]
[1744921519868,18.64964886,134.29,134.25,18.61463112]
[1744921520057,18.61463112,134.26,134.23,26.0]
[1744921520261,18.61463112,134.27,134.22,18.61463112]
[1744921520462,18.61463112,134.26,134.21,44.61463112]
[1744921520770,18.61463112,134.26,134.22,18.61463112]
[1744921521156,26.07076349,134.25,134.22,18.61463112]
[1744921524185,26.07076349,134.25,134.24,18.61463112]
[1744921524352,7.44851821,134.26,134.24,18.61463112]
[1744921524671,7.44851821,134.26,134.25,18.61463112]
[1744921525168,18.61694412,134.29,134.25,18.61463112]
[1744921525373,18.61694412,134.29,134.26,18.61463112]
[1744921526684,18.61694412,134.29,134.25,18.61463112]
[1744921526972,26.06351497,134.29,134.25,18.61463112]
[1744921527458,44.67814609,134.29,134.24,18.61463112]
[1744921527655,81.91100036,134.29,134.24,18.61463112]
[1744921527862,18.61463112,134.27,134.22,18.61463112]
[1744921528253,18.61463112,134.27,134.23,18.61463112]
[1744921528774,26.06882168,134.26,134.23,18.61463112]
[1744921531269,18.62058692,134.26,134.23,18.61463112]
[1744921534972,18.62058692,134.26,134.24,18.61463112]
[1744921535269,7.44768004,134.27,134.25,11.91448538]
[1744921536477,18.61802763,134.28,134.25,11.91448538]
[1744921537671,18.61802763,134.28,134.24,11.91448538]
[1744921537973,18.61802763,134.28,134.21,26.14216157]
[1744921538180,30.53251301,134.28,134.23,11.91448538]
[1744921539183,37.97963841,134.28,134.23,11.91448538]
[1744921543169,11.91448538,134.26,134.21,37.91448538]
[1744921543571,11.91448538,134.26,134.22,11.91448538]
[1744921544082,36.84743424,134.27,134.22,11.91448538]
[1744921544282,36.84743424,134.27,134.21,26.0]
[1744921544283,11.91448538,134.26,134.21,26.0]
[1744921544457,11.91448538,134.26,134.22,11.91448538]
[1744921544982,26.07076349,134.25,134.22,11.91448538]
[1744921545884,37.98524887,134.25,134.21,26.0]
[1744921546078,37.98524887,134.25,134.2,27.87748538]
[1744921547367,37.98524887,134.25,134.21,11.91448538]
[1744921547558,26.07076349,134.25,134.21,11.91448538]
[1744921547759,26.07076349,134.25,134.22,11.91448538]
[1744921548783,18.62197392,134.25,134.22,11.91448538]
[1744921554685,26.07076349,134.25,134.22,11.91448538]
[1744921555383,26.07076349,134.25,134.21,11.91448538]
[1744921556085,26.07076349,134.25,134.2,0.063]
[1744921556086,11.91448538,134.23,134.2,0.063]
[1744921556386,11.91448538,134.21,134.2,0.063]
[1744921556973,19.36549499,134.21,134.2,0.063]
[1744921557588,7.45100961,134.21,134.2,11.97748538]
[1744921558384,7.45100961,134.21,134.2,0.063]
[1744921559594,7.45045447,134.22,134.2,0.063]
[1744921561391,7.45045447,134.22,134.2,11.97748538]
[1744921562992,26.07530852,134.23,134.2,11.97748538]
[1744921564375,26.07530852,134.23,134.2,0.063]
[1744921564892,7.44989942,134.23,134.22,11.91448538]
[1744921567295,18.62235421,134.25,134.22,11.91448538]
[1744921567296,26.06688015,134.27,134.22,11.91448538]
[1744921567501,26.06688015,134.27,134.24,11.91448538]
[1744921567994,7.44768004,134.27,134.26,11.91448538]
[1744921569200,26.05938277,134.31,134.26,11.91448538]
[1744921569374,26.09400231,134.33,134.3,11.91448538]
[1744921569774,26.05523709,134.33,134.3,11.91448538]
[1744921571192,26.05523709,134.33,134.29,11.91448538]
[1744921571499,37.96972247,134.33,134.28,11.91448538]
[1744921572398,11.91448538,134.32,134.27,11.91448538]
[1744921572601,11.91448538,134.31,134.27,11.91448538]
[1744921573498,26.06105733,134.3,134.26,37.91448538]
[1744921573800,37.97554271,134.3,134.26,37.91448538]
[1744921574585,26.06105733,134.3,134.26,37.91448538]
[1744921574776,26.06105733,134.3,134.28,11.91448538]
[1744921575099,7.44601638,134.3,134.29,11.91448538]
[1744921575599,18.61253526,134.32,134.29,11.91448538]
[1744921576595,18.61253526,134.32,134.28,11.91448538]
[1744921576903,11.91448538,134.31,134.26,37.91448538]
[1744921577605,26.06105733,134.3,134.26,37.91448538]
[1744921578303,11.91448538,134.29,134.25,11.91448538]
[1744921578506,11.91448538,134.29,134.24,15.86]
[1744921578507,11.91448538,134.28,134.24,15.86]
[1744921578889,30.56413424,134.29,134.24,27.77448538]
[1744921579100,30.56413424,134.29,134.25,11.91448538]
[1744921579406,26.06105733,134.3,134.26,11.91448538]
[1744921579699,37.97554271,134.3,134.26,11.91448538]
[1744921579897,37.97554271,134.3,134.25,11.91448538]
[1744921581678,30.56413424,134.29,134.24,15.86]
[1744921581878,11.91448538,134.28,134.24,11.91448538]
[1744921583002,26.06688015,134.27,134.24,11.91448538]
[1744921583381,37.98136553,134.27,134.22,37.91448538]
[1744921584815,11.91448538,134.26,134.22,37.91448538]
[1744921585190,11.91448538,134.26,134.22,11.91448538]
[1744921585191,26.07076349,134.25,134.22,11.91448538]
[1744921587186,18.62197392,134.25,134.22,11.91448538]
[1744921588115,7.44823476,134.26,134.24,11.91448538]
[1744921588410,7.44823476,134.26,134.25,11.91448538]
[1744921589409,26.06299798,134.29,134.25,11.91448538]
[1744921589610,26.06299798,134.29,134.26,11.91448538]
[1744921590603,37.97748336,134.29,134.24,11.91448538]
[1744921590811,11.91448538,134.28,134.23,37.91448538]
[1744921590980,30.56413424,134.27,134.22,11.91448538]
[1744921591181,30.56413424,134.27,134.23,11.91448538]
[1744921591412,18.64964886,134.27,134.23,11.91448538]
[1744921591605,26.06882168,134.26,134.23,11.91448538]
[1744921592000,26.06882168,134.26,134.24,11.91448538]
[1744921593087,26.06882168,134.26,134.25,11.91448538]
[1744921595817,18.62058692,134.26,134.25,11.91448538]
[1744921596735,18.62058692,134.26,134.24,11.91448538]
[1744921597100,18.62058692,134.26,134.22,11.91448538]
[1744921597300,18.62058692,134.26,134.23,11.91448538]
[1744921598814,18.62058692,134.26,134.24,11.91448538]
[1744921608520,7.44768004,134.27,134.25,11.91448538]
[1744921608729,7.44768004,134.27,134.26,11.91448538]
[1744921610717,18.61803681,134.28,134.26,11.91448538]
[1744921610912,18.61803681,134.28,134.25,11.91448538]
[1744921614408,30.53252219,134.28,134.23,11.91448538]
[1744921615431,30.56413424,134.27,134.2,15.923]
[1744921615633,11.91448538,134.26,134.22,11.91448538]
[1744921616115,11.91448538,134.25,134.2,15.923]
[1744921616429,26.07270559,134.24,134.21,11.91448538]
[1744921616608,26.07270559,134.24,134.22,11.91448538]
[1744921616807,26.07270559,134.24,134.2,0.063]
[1744921617019,26.07270559,134.24,134.21,11.91448538]
[1744921618932,18.62336114,134.24,134.21,11.91448538]
[1744921621130,26.07270559,134.24,134.21,11.91448538]
[1744921622331,18.62336114,134.24,134.21,11.91448538]
[1744921622717,18.62336114,134.24,134.23,11.91448538]
[1744921624634,26.06882168,134.26,134.23,11.91448538]
[1744921629634,26.06882168,134.26,134.24,11.91448538]
[1744921629838,26.06882168,134.26,134.25,11.91448538]
[1744921631135,44.71458778,134.28,134.25,11.91448538]
[1744921631339,44.71458778,134.28,134.24,11.91448538]
[1744921636632,11.91448538,134.27,134.22,11.91448538]
[1744921636835,11.91448538,134.26,134.21,11.91448538]
[1744921637543,18.64964886,134.27,134.2,0.063]
[1744921637544,30.56413424,134.24,134.2,0.063]
[1744921637845,11.91448538,134.23,134.2,0.063]
[1744921638043,18.64964886,134.24,134.21,11.91448538]
[1744921638242,11.91448538,134.23,134.2,0.063]
[1744921638433,30.56413424,134.24,134.2,0.063]
[1744921639043,30.56413424,134.24,134.2,11.97748538]
[1744921640046,26.07464798,134.23,134.2,11.97748538]
[1744921647740,30.56413424,134.22,134.19,0.063]
[1744921647946,11.91448538,134.21,134.18,0.063]
[1744921648648,7.45156482,134.2,134.18,0.063]
[1744921649470,7.45156482,134.2,134.18,11.97748538]
[1744921649749,7.45156482,134.2,134.19,11.91448538]